bitfinex-derivatives/quotes_SOLF0:USTF0_20250409
["timestamp","ask_amount","ask_price","bid_price","bid_amount"]
[1744208369271,9.4364,106.05,106.0,62.4]
[1744208369662,9.4364,106.05,106.02,9.4379]
[1744208369863,9.4368,106.04,106.0,62.4]
[1744208370075,9.50180208,106.04,106.01,0.06763569]
[1744208370273,0.06500208,106.04,106.02,9.4384]
[1744208371071,0.06500208,106.04,106.01,0.06763569]
[1744208371257,9.50190208,106.04,106.01,0.06763569]
[1744208371462,0.06500208,106.04,106.02,9.4383]
[1744208372072,40.02694407,106.1,106.04,9.4361]
[1744208372272,9.4348,106.07,106.01,4.793]
[1744208372471,40.02694407,106.1,106.01,4.793]
[1744208372776,9.4348,106.07,106.01,4.793]
[1744208373274,0.06166829,106.05,106.03,9.49915972]
[1744208373477,9.4354,106.06,106.03,9.4369]
[1744208373672,0.06158686,106.05,106.04,9.4367]
[1744208373874,0.06158686,106.05,106.03,0.05982188]
[1744208374177,0.06158686,106.05,106.03,9.49682188]
[1744208374483,0.06158686,106.05,106.03,0.05982188]
[1744208374775,40.02694407,106.14,106.04,102.18694407]
[1744208374979,9.4327,106.09,106.04,102.18694407]
[1744208375168,40.02694407,106.12,106.04,62.16]
[1744208375574,40.02694407,106.12,106.02,4.5231]
[1744208375772,40.02694407,106.12,106.07,0.06184414]
[1744208376164,41.22684407,106.16,106.07,0.06184414]
[1744208376369,41.22684407,106.16,106.07,4.7127]
[1744208376580,41.22684407,106.16,106.1,0.0607808]
[1744208376774,9.4301,106.12,106.1,0.0607808]
[1744208376975,41.22684407,106.16,106.1,0.0607808]
[1744208377177,9.4305,106.11,106.1,0.0607808]
[1744208377879,9.4305,106.12,106.1,0.0607808]
[1744208378181,40.02694407,106.14,106.1,9.4919808]
[1744208378586,40.02694407,106.14,106.1,0.0607808]
[1744208378879,9.4305,106.11,106.1,0.0607808]
[1744208379774,9.4301,106.12,106.1,0.0607808]
[1744208380180,9.4292,106.13,106.1,0.0607808]
[1744208380577,9.4292,106.13,106.1,9.4916808]
[1744208381984,62.16,106.16,106.1,0.0607808]
[1744208382477,9.4303,106.12,106.1,0.0607808]
[1744208383289,9.4305,106.11,106.1,0.0607808]
[1744208384093,24.57832413,106.15,106.1,0.0607808]
[1744208384391,24.57832413,106.21,106.11,24.57832413]
[1744208384579,24.57832413,106.23,106.12,14.2851]
[1744208384777,24.57832413,106.21,106.13,62.14]
[1744208384976,24.57832413,106.21,106.16,0.06648928]
[1744208385179,9.4258,106.17,106.16,0.06648928]
[1744208385379,24.57832413,106.21,106.12,14.2851]
[1744208385579,24.57832413,106.23,106.12,14.2851]
[1744208385778,9.4233,106.2,106.17,9.4247]
[1744208385989,24.57832413,106.23,106.17,9.4247]
[1744208386182,24.57832413,106.23,106.17,0.06607269]
[1744208386381,9.4217,106.21,106.18,9.4237]
[1744208386582,25.83212413,106.25,106.18,9.2794]
[1744208386785,25.83212413,106.25,106.18,9.34137735]
[1744208386973,25.83212413,106.25,106.18,9.2794]
[1744208387181,25.83212413,106.25,106.2,0.07063286]
[1744208387490,86.71832413,106.27,106.21,9.421]
[1744208388085,86.71832413,106.27,106.23,0.06941495]
[1744208388586,24.57832413,106.27,106.23,0.06941495]
[1744208389086,9.4181,106.25,106.23,0.06941495]
[1744208389391,24.57832413,106.29,106.23,0.06941495]
[1744208389586,9.4186,106.25,106.23,0.06941495]
[1744208389984,24.57832413,106.29,106.23,0.06941495]
[1744208390379,9.4182,106.25,106.23,0.06941495]
[1744208390583,24.57832413,106.29,106.23,0.06941495]
[1744208391290,24.57832413,106.27,106.23,0.06941495]
[1744208391480,9.419,106.24,106.23,0.06941495]
[1744208391879,9.4179,106.26,106.23,0.06941495]
[1744208392182,24.57832413,106.29,106.23,0.06941495]
[1744208392389,24.57832413,106.27,106.23,0.06941495]
[1744208392989,24.57832413,106.31,106.23,62.16941495]
[1744208393188,24.57832413,106.31,106.27,9.4159]
[1744208393388,24.57832413,106.35,106.27,62.1]
[1744208393691,9.4082,106.37,106.34,9.4097]
[1744208393993,51.87411928,106.41,106.33,62.1]
[1744208394195,9.4058,106.39,106.33,62.1]
[1744208394393,51.87411928,106.41,106.34,0.07156835]
[1744208394691,9.4066,106.39,106.33,86.67832413]
[1744208394888,9.4066,106.39,106.34,9.4096]
[1744208395089,51.87411928,106.41,106.36,0.0603027]
[1744208395686,9.4071,106.38,106.36,0.0603027]
[1744208395895,51.87411928,106.41,106.36,0.0603027]
[1744208396988,39.71817552,106.39,106.36,0.0603027]
[1744208397382,39.71817552,106.37,106.32,13.9755]
[1744208397791,39.71817552,106.37,106.32,9.324]
[1744208398498,9.411,106.33,106.32,9.324]
[1744208398689,39.71817552,106.35,106.33,0.06089798]
[1744208398891,39.71817552,106.35,106.29,62.06]
[1744208399095,39.78748282,106.35,106.33,0.06955301]
[1744208399496,9.4101,106.34,106.33,0.06955301]
[1744208400898,0.0693073,106.35,106.33,0.06955301]
[1744208401298,9.4101,106.34,106.33,0.06955301]
[1744208403502,9.4101,106.34,106.33,5.301e-05]
[1744208403709,49.11817552,106.34,106.23,9.4194]
[1744208403898,39.71817552,106.3,106.23,9.4194]
[1744208404212,9.4169,106.27,106.24,9.4188]
[1744208404392,39.71817552,106.3,106.22,572.6946]
[1744208404594,39.71817552,106.3,106.23,1.73045903]
[1744208404794,9.48091345,106.27,106.25,0.06345755]
[1744208404997,0.06401345,106.27,106.25,0.06345755]
[1744208405191,39.71817552,106.36,106.26,61.78]
[1744208405405,58.52827552,106.4,106.29,39.71817552]
[1744208405590,58.52827552,106.4,106.3,70.9462]
[1744208405996,39.71817552,106.36,106.3,70.9462]
[1744208406293,39.71817552,106.36,106.32,0.07107905]
[1744208406499,9.411,106.33,106.32,0.07107905]
[1744208407000,9.4,106.33,106.24,61.78]
[1744208407192,39.71817552,106.29,106.23,9.2113]
[1744208407609,9.419,106.24,106.23,9.2113]
[1744208408005,39.71817552,106.29,106.23,9.2113]
[1744208408203,9.49034716,106.25,106.23,9.2113]
[1744208408591,9.419,106.24,106.23,0.06246505]
[1744208409003,0.06592977,106.25,106.22,0.06589006]
[1744208409306,9.4199,106.23,106.22,0.06589006]
[1744208411808,0.06592977,106.25,106.22,0.06589006]
[1744208412809,9.4199,106.23,106.22,0.06589006]
[1744208412998,0.06592977,106.25,106.22,0.06589006]
[1744208413200,80.6066,106.31,106.22,0.06589006]
[1744208413201,61.78,106.31,106.22,0.06589006]
[1744208413401,40.90067552,106.32,106.22,1.73086928]
[1744208413600,39.71817552,106.3,106.22,1.73086928]
[1744208414307,39.71817552,106.28,106.22,1.73086928]
[1744208414507,39.71817552,106.26,106.25,3.908e-05]
[1744208414712,39.71817552,106.28,106.19,63.53108304]
[1744208414907,39.71817552,106.28,106.22,9.4203]
[1744208415611,0.06861688,106.26,106.24,0.06208413]
[1744208416602,9.4181,106.25,106.24,0.06208413]
[1744208416998,0.06861688,106.26,106.24,0.06208413]
[1744208417208,39.71817552,106.34,106.25,39.71817552]
[1744208417414,39.71817552,106.36,106.26,6.4557613]
[1744208417617,63.1572,106.37,106.27,103.24863682]
[1744208417910,9.4125,106.32,106.28,1.7304613]
[1744208418206,9.4114,106.33,106.28,41.44863682]
[1744208418411,1.3572,106.37,106.29,1.79765923]
[1744208418412,0.0706568,106.31,106.29,1.79765923]
[1744208418606,1.3572,106.37,106.3,9.4137]
[1744208419002,39.71817552,106.38,106.29,4.5263]
[1744208419206,598.59817552,106.4,106.3,1.7293287]
[1744208419415,9.4102,106.34,106.3,1.7293287]
[1744208419717,9.4102,106.34,106.31,9.4124]
[1744208420014,9.4102,106.34,106.31,9.47507154]
[1744208420514,598.59817552,106.4,106.31,0.06267154]
[1744208420704,39.71817552,106.4,106.31,61.78]
[1744208420901,40.17747552,106.44,106.34,0.06749123]
[1744208421108,0.4593,106.44,106.35,61.78]
[1744208421300,0.4593,106.44,106.38,0.0614428]
[1744208422605,9.4057,106.39,106.38,0.0614428]
[1744208423509,9.4052,106.4,106.38,0.0614428]
[1744208423717,39.71817552,106.43,106.38,0.0614428]
[1744208424125,9.4057,106.39,106.38,0.0614428]
[1744208426020,9.4052,106.4,106.38,0.0614428]
[1744208426219,39.71817552,106.45,106.38,0.0614428]
[1744208426425,39.71817552,106.45,106.38,61.76]
[1744208426722,9.4044,106.41,106.4,0.06273832]
[1744208428723,39.71817552,106.45,106.4,0.06273832]
[1744208429327,39.71817552,106.48,106.4,61.80273832]
[1744208429637,39.71817552,106.48,106.4,61.74]
[1744208429816,9.4021,106.44,106.43,0.07191841]
[1744208430017,39.71817552,106.48,106.43,0.07191841]
[1744208430216,39.71817552,106.5,106.43,9.47371841]
[1744208430421,0.4526,106.51,106.44,61.74]
[1744208430628,0.4526,106.51,106.45,0.06928932]
[1744208430824,39.71817552,106.5,106.45,0.06928932]
[1744208431220,9.3995,106.46,106.45,0.06928932]
[1744208432033,9.3981,106.48,106.45,0.06928932]
[1744208432223,39.71817552,106.54,106.45,0.06928932]
[1744208432535,39.71817552,106.52,106.44,61.74]
[1744208432721,39.71817552,106.52,106.48,0.06811868]
[1744208432918,9.3969,106.49,106.48,0.06811868]
[1744208433421,61.72,106.53,106.48,0.06811868]
[1744208433623,39.71817552,106.52,106.48,0.06811868]
[1744208434424,41.09977552,106.55,106.48,0.06811868]
[1744208434624,41.09977552,106.55,106.44,61.74]
[1744208434825,39.71817552,106.53,106.5,0.06884524]
[1744208435029,0.4499,106.55,106.5,0.06884524]
[1744208435225,537.39924159,106.59,106.5,0.06884524]
[1744208435226,558.16,106.59,106.5,0.06884524]
[1744208435424,558.6099,106.59,106.48,61.48]
[1744208435632,558.6099,106.59,106.53,0.0643568]
[1744208435633,39.71817552,106.57,106.53,0.0643568]
[1744208435825,9.3925,106.54,106.53,0.0643568]
[1744208439649,40.16807552,106.59,106.53,0.0643568]
[1744208439852,39.71817552,106.59,106.53,0.0643568]
[1744208440151,39.71817552,106.59,106.53,9.4572568]
[1744208440649,9.3925,106.54,106.53,0.0643568]
[1744208440841,637.01635104,106.55,106.45,359.0]
[1744208441153,9.3964,106.5,106.45,359.0]
[1744208441353,61.44,106.54,106.45,359.0]
[1744208441551,61.44,106.54,106.47,1.72657004]
[1744208441751,9.3964,106.5,106.46,66.1638]
[1744208442051,0.06385378,106.52,106.49,0.06504878]
[1744208442254,9.396,106.5,106.49,0.06504878]
[1744208443251,39.71817552,106.5,106.45,359.0]
[1744208443438,19.7122,106.53,106.44,4.8041]
[1744208443748,39.71817552,106.53,106.44,4.8041]
[1744208443946,39.71817552,106.53,106.45,1.72675654]
[1744208444336,9.3978,106.48,106.46,9.3994]
[1744208444543,0.06860085,106.5,106.44,4.8041]
[1744208444740,0.06860085,106.5,106.46,0.06054616]
[1744208444947,9.3987,106.47,106.46,0.06054616]
[1744208446038,0.06825613,106.48,106.46,0.06054616]
[1744208446753,9.3987,106.47,106.46,0.06054616]
[1744208447248,0.06825613,106.48,106.46,0.06054616]
[1744208447448,101.15817552,106.53,106.46,0.06054616]
[1744208447648,39.71817552,106.49,106.44,4.8041]
[1744208447855,101.15817552,106.49,106.42,4.7354]
[1744208448248,9.4022,106.43,106.42,4.7354]
[1744208448645,0.06139296,106.44,106.41,4.8105012]
[1744208448847,9.4031,106.42,106.41,4.8105012]
[1744208449252,9.4031,106.42,106.41,0.0606012]
[1744208449554,9.46319296,106.44,106.41,0.0606012]
[1744208449951,0.06139296,106.44,106.41,0.0606012]
[1744208450545,9.46309296,106.44,106.41,0.0606012]
[1744208450755,0.06139296,106.44,106.41,0.0606012]
[1744208451153,9.46279296,106.44,106.41,0.0606012]
[1744208451349,0.06139296,106.44,106.41,0.0606012]
[1744208452240,9.4027,106.43,106.41,0.0606012]
[1744208452444,0.06139296,106.44,106.41,0.0606012]
[1744208452758,9.4031,106.42,106.41,0.0606012]
[1744208454162,9.4058,106.39,106.37,363.7499]
[1744208454348,58.52297552,106.43,106.34,4.7311]
[1744208454552,39.71817552,106.41,106.34,14.1408]
[1744208454752,61.44,106.4,106.34,14.1408]
[1744208455257,9.4087,106.36,106.34,14.1408]
[1744208455558,9.4087,106.36,106.34,14.200214]
[1744208455946,9.408,106.37,106.34,14.200214]
[1744208456257,0.063843,106.38,106.34,14.200214]
[1744208456451,0.063843,106.38,106.34,4.790514]
[1744208456864,0.063843,106.38,106.34,14.200214]
[1744208457052,0.063843,106.38,106.34,0.059414]
[1744208458057,9.4087,106.36,106.34,0.059414]
[1744208459260,0.063843,106.38,106.34,9.469514]
[1744208459557,0.063843,106.38,106.34,0.059414]
[1744208460758,9.4093,106.35,106.34,0.059414]
[1744208462162,0.06150669,106.36,106.34,0.059414]
[1744208462351,61.48,106.42,106.34,0.059414]
[1744208462551,61.48,106.42,106.32,39.71817552]
[1744208462756,61.48,106.42,106.33,1.72859858]
[1744208462956,61.48,106.42,106.34,39.71817552]
[1744208463161,61.48,106.42,106.35,4.7272]
[1744208463559,0.06270572,106.4,106.38,9.4065]
[1744208463763,0.06270572,106.4,106.37,0.06079905]
[1744208464257,9.4066,106.38,106.37,0.06079905]
[1744208464459,0.06270572,106.4,106.37,0.06079905]
[1744208465959,0.06270572,106.4,106.38,9.4066]
[1744208466165,61.26,106.48,106.37,39.77897457]
[1744208466348,39.71817552,106.47,106.38,6.40096962]
[1744208466658,9.4018,106.44,106.38,4.6732]
[1744208466852,39.71817552,106.47,106.38,4.6732]
[1744208467263,9.4018,106.44,106.41,9.4034]
[1744208467465,39.71817552,106.47,106.41,0.0610082]
[1744208467764,39.71817552,106.47,106.42,9.4025]
[1744208468067,61.26,106.48,106.39,100.97817552]
[1744208468257,61.26,106.48,106.43,0.05959584]
[1744208468453,61.26,106.52,106.43,0.05959584]
[1744208468647,61.26,106.52,106.4,403.17817552]
[1744208468648,39.71817552,106.49,106.4,403.17817552]
[1744208468852,9.4009,106.45,106.42,9.403]
[1744208469054,39.71817552,106.49,106.4,363.46]
[1744208469252,39.71817552,106.49,106.43,0.06701082]
[1744208469656,18.7861,106.54,106.44,39.71817552]
[1744208469657,0.16,106.54,106.44,39.71817552]
[1744208469869,536.17817552,106.55,106.45,9.0512]
[1744208470057,536.17817552,106.55,106.48,0.07033018]
[1744208470563,536.17817552,106.55,106.5,0.06588874]
[1744208470960,9.3951,106.51,106.5,0.06588874]
[1744208471360,536.17817552,106.55,106.5,0.06588874]
[1744208471560,496.46,106.55,106.5,0.06588874]
[1744208471863,61.26,106.56,106.5,0.06588874]
[1744208472170,9.3951,106.51,106.5,0.06588874]
[1744208473661,9.3951,106.51,106.5,8.874e-05]
[1744208474166,58.49327552,106.51,106.5,8.874e-05]
[1744208474353,9.4006,106.45,106.42,9.4026]
[1744208474559,39.71817552,106.49,106.41,14.2409]
[1744208474863,39.71817552,106.49,106.42,9.4031]
[1744208475262,9.4024,106.43,106.41,14.2409]
[1744208475565,39.78379896,106.47,106.41,9.4457]
[1744208475760,9.403,106.43,106.41,9.50786335]
[1744208476062,0.06588874,106.45,106.41,9.4457]
[1744208476263,0.06588874,106.45,106.41,9.51666515]
[1744208477257,0.06588874,106.45,106.41,0.07096515]
[1744208477467,9.4031,106.42,106.41,0.07096515]
[1744208477657,39.71817552,106.42,106.37,4.8506]
[1744208477868,39.71817552,106.4,106.33,14.0189]
[1744208478064,39.71817552,106.42,106.33,14.0189]
[1744208478265,39.71817552,106.4,106.33,14.0189]
[1744208478471,39.71817552,106.38,106.33,9.2735]
[1744208478659,39.71817552,106.38,106.3,4.7454]
[1744208478862,0.06690048,106.37,106.34,0.07089542]
[1744208479771,0.06690048,106.37,106.35,9.4093]
[1744208480171,0.06690048,106.37,106.34,9.48059542]
[1744208480368,0.06690048,106.37,106.34,0.07089542]
[1744208481168,39.71817552,106.36,106.34,0.07089542]
[1744208481360,39.71817552,106.36,106.28,102.6403988]
[1744208481559,39.71817552,106.33,106.26,13.6214]
[1744208482262,39.71817552,106.33,106.26,23.0382]
[1744208482467,39.71817552,106.33,106.26,13.6214]
[1744208482773,9.4137,106.3,106.28,0.07081415]
[1744208483069,0.07143344,106.31,106.28,0.07081415]
[1744208483272,9.48473344,106.31,106.28,0.07081415]
[1744208483459,0.07143344,106.31,106.28,0.07081415]
[1744208483967,9.4146,106.29,106.28,0.07081415]
[1744208484168,9.4146,106.29,106.28,1.415e-05]
[1744208484370,9.4166,106.27,106.23,13.8357]
[1744208484970,39.71817552,106.3,106.23,4.4164]
[1744208485171,39.71817552,106.32,106.23,4.4164]
[1744208485572,0.07077749,106.28,106.26,9.4166]
[1744208486176,0.07077749,106.28,106.27,9.4163]
[1744208486386,39.71817552,106.34,106.26,0.06586043]
[1744208486670,39.71817552,106.34,106.25,41.447897]
[1744208486974,39.71817552,106.34,106.25,39.71817552]
[1744208487371,9.4121,106.32,106.25,39.71817552]
[1744208487583,0.06187902,106.31,106.28,0.06495186]
[1744208487877,62.4986,106.36,106.28,61.36495186]
[1744208487878,9.4089,106.36,106.28,61.36495186]
[1744208488178,40.09097552,106.38,106.29,4.82]
[1744208488475,9.4086,106.36,106.32,9.4117]
[1744208488672,40.09097552,106.38,106.29,44.53817552]
[1744208488874,61.3,106.39,106.3,1.72898569]
[1744208489070,61.3,106.39,106.33,9.411]
[1744208489273,0.0631728,106.36,106.33,0.07000702]
[1744208490170,9.406,106.39,106.33,0.07000702]
[1744208490370,101.01817552,106.42,106.33,39.78818254]
[1744208490576,101.01817552,106.42,106.33,39.71817552]
[1744208490776,39.71817552,106.42,106.33,39.71817552]
[1744208490974,9.4052,106.4,106.36,9.4078]
[1744208491175,39.71817552,106.42,106.32,420.3]
[1744208491381,0.06308874,106.39,106.36,0.06328868]
[1744208491685,0.06308874,106.39,106.36,61.36328868]
[1744208491981,9.4036,106.42,106.38,9.4061]
[1744208492180,39.71817552,106.44,106.37,4.5546]
[1744208492385,39.71817552,106.4,106.34,359.0]
[1744208492574,9.4072,106.38,106.34,9.4094]
[1744208492773,39.71817552,106.42,106.34,9.4094]
[1744208492983,9.4088,106.36,106.35,0.0668435]
[1744208493288,39.71817552,106.4,106.32,65.8921]
[1744208493471,9.4066,106.38,106.34,9.47283517]
[1744208493784,39.71817552,106.4,106.34,0.06343517]
[1744208493981,9.4079,106.37,106.34,9.47353517]
[1744208494188,39.71817552,106.4,106.34,0.06343517]
[1744208494380,39.71817552,106.42,106.34,0.06343517]
[1744208494878,39.71817552,106.42,106.37,0.06624172]
[1744208495074,101.01817552,106.44,106.37,0.06624172]
[1744208495275,101.01817552,106.44,106.33,39.71817552]
[1744208495481,101.01817552,106.44,106.39,0.059218]
[1744208495895,39.71817552,106.42,106.39,0.059218]
[1744208496081,61.3,106.44,106.39,0.059218]
[1744208496281,39.71817552,106.41,106.39,0.059218]
[1744208497878,39.71817552,106.42,106.39,0.059218]
[1744208498993,39.71817552,106.4,106.39,0.059218]
[1744208499380,140.51635104,106.4,106.33,4.4093]
[1744208499580,39.71817552,106.38,106.3,359.0]
[1744208499786,39.71817552,106.36,106.29,557.78]
[1744208500089,100.79817552,106.36,106.28,9.4945]
[1744208500590,0.06607478,106.33,106.31,0.06000781]
[1744208503284,0.06607478,106.33,106.26,65.6293]
[1744208503489,1.5972,106.39,106.28,39.71817552]
[1744208503682,100.81817552,106.42,106.32,39.71817552]
[1744208503884,40.08597552,106.44,106.33,74.8022]
[1744208504184,39.71817552,106.41,106.33,74.8022]
[1744208504390,0.06955071,106.4,106.37,0.07140254]
[1744208508695,39.71817552,106.39,106.37,0.07140254]
[1744208509797,39.71817552,106.39,106.33,9.0531]
[1744208510187,39.71817552,106.39,106.3,65.5799]
[1744208510587,100.79817552,106.41,106.3,65.5799]
[1744208510992,0.060705,106.37,106.34,0.06004413]
[1744208511192,0.060705,106.37,106.3,65.5799]
[1744208511394,0.060705,106.37,106.34,0.06233306]
[1744208511596,0.06581555,106.35,106.34,0.06233306]
[1744208511890,100.79817552,106.41,106.31,39.71817552]
[1744208512089,39.71817552,106.39,106.3,424.5799]
[1744208512897,0.06263165,106.36,106.33,0.06549974]
[1744208517612,39.71817552,106.35,106.33,0.06549974]
[1744208518805,0.06263165,106.36,106.33,0.06549974]
[1744208520310,9.47113165,106.36,106.34,9.4101]
[1744208521013,9.4096,106.35,106.33,9.47609974]
[1744208521221,0.06263165,106.36,106.33,0.06549974]
[1744208521704,9.4101,106.34,106.33,0.06549974]
[1744208522513,9.4098,106.35,106.33,0.06549974]
[1744208522809,0.06263165,106.36,106.33,0.06549974]
[1744208523120,9.4101,106.34,106.33,0.06549974]
[1744208524006,24.4745806,106.35,106.26,61.1]
[1744208524315,24.4745806,106.3,106.25,4.5124]
[1744208524516,9.4181,106.25,106.24,102.6403988]
[1744208524909,24.4745806,106.26,106.21,102.6403988]
[1744208525118,9.4208,106.22,106.21,102.6403988]
[1744208526015,0.06021185,106.23,106.21,102.6403988]
[1744208526216,85.3545806,106.22,106.19,320.75124625]
[1744208526515,0.06021185,106.23,106.19,307.82995847]
[1744208527013,0.06021185,106.23,106.2,9.4217]
[1744208527206,0.06021185,106.23,106.19,307.82995847]
[1744208527412,0.06021185,106.23,106.2,0.06331325]
[1744208529109,0.06021185,106.23,106.22,9.4208]
[1744208529305,40.14838342,106.29,106.21,4.433]
[1744208529306,39.85048342,106.29,106.21,4.433]
[1744208529507,100.77048342,106.31,106.21,4.433]
[1744208529918,39.85048342,106.29,106.21,4.433]
[1744208530218,39.85048342,106.27,106.21,4.433]
[1744208530420,0.07106141,106.26,106.24,0.06153308]
[1744208531022,9.4181,106.25,106.24,0.06153308]
[1744208531320,39.85048342,106.25,106.16,60.92]
[1744208531617,39.85048342,106.21,106.16,9.207]
[1744208531824,39.85048342,106.19,106.12,4.433]
[1744208532123,9.4267,106.16,106.11,9.207]
[1744208532304,0.06152137,106.17,106.14,0.0657583]
[1744208532511,100.77048342,106.2,106.14,0.0657583]
[1744208532711,0.06988822,106.17,106.16,9.4257]
[1744208533518,60.92,106.23,106.15,4.6587]
[1744208533724,9.4239,106.19,106.15,4.6587]
[1744208533924,39.85048342,106.22,106.15,4.6587]
[1744208534126,60.92,106.23,106.18,9.4239]
[1744208534320,9.4221,106.21,106.18,9.4239]
[1744208534620,9.4221,106.21,106.19,0.0632285]
[1744208534823,9.48273083,106.22,106.19,9.4859285]
[1744208535016,0.06153083,106.22,106.19,0.0632285]
[1744208535821,0.06153083,106.22,106.2,9.4222]
[1744208536321,0.06153083,106.22,106.19,0.0632285]
[1744208537119,9.4217,106.21,106.19,0.0632285]
[1744208537327,0.06153083,106.22,106.19,9.4862285]
[1744208537522,0.06153083,106.22,106.19,0.0632285]
[1744208537722,9.48293083,106.22,106.19,0.0632285]
[1744208537915,0.06153083,106.22,106.19,0.0632285]
[1744208538118,9.4224,106.21,106.19,0.0632285]
[1744208539023,9.4225,106.2,106.19,0.0632285]
[1744208539214,39.85048342,106.2,106.11,9.207]
[1744208539420,39.85048342,106.18,106.11,14.0013]
[1744208539618,9.4283,106.14,106.11,23.4314]
[1744208539820,60.96,106.17,106.11,14.0013]
[1744208540023,39.85048342,106.15,106.11,14.0013]
[1744208540224,9.4297,106.12,106.11,14.0013]
[1744208540430,0.06522427,106.14,106.12,0.06497759]
[1744208540728,9.49352427,106.14,106.12,0.06497759]
[1744208541130,0.06522427,106.14,106.12,0.06497759]
[1744208542330,0.06522427,106.14,106.12,9.49417759]
[1744208542519,39.85048342,106.19,106.12,0.06497759]
[1744208542720,39.85048342,106.19,106.13,4.6576]
[1744208542928,9.4266,106.16,106.13,14.0858]
[1744208543230,39.85048342,106.19,106.13,4.6576]
[1744208543418,9.4248,106.18,106.15,9.4269]
[1744208543620,9.4248,106.18,106.13,4.6576]
[1744208543819,9.49402902,106.18,106.15,0.05989195]
[1744208544123,9.4253,106.17,106.15,9.48639195]
[1744208544629,9.4253,106.17,106.15,0.05989195]
[1744208545731,9.4253,106.17,106.15,9.48679195]
[1744208546229,9.4253,106.17,106.15,0.05989195]
[1744208547428,9.4253,106.17,106.15,9.48669195]
[1744208547729,9.49402902,106.18,106.15,9.48669195]
[1744208547929,0.06922902,106.18,106.15,0.05989195]
[1744208548230,39.85048342,106.17,106.09,4.5579]
[1744208548418,39.85048342,106.14,106.09,4.5579]
[1744208549329,0.06549538,106.13,106.1,0.06359805]
[1744208549526,9.4305,106.11,106.1,0.06359805]
[1744208550038,9.4337,106.08,106.06,13.7742]
[1744208550328,24.58727594,106.11,106.06,13.7742]
[1744208550724,9.4336,106.08,106.06,13.7742]
[1744208551123,9.4327,106.09,106.06,13.7742]
[1744208551316,0.06123133,106.08,106.06,13.83697278]
[1744208552522,0.06123133,106.08,106.06,23.27157278]
[1744208553332,0.06123133,106.08,106.06,13.83697278]
[1744208553538,9.4341,106.07,106.06,0.06277278]
[1744208554031,40.02528097,106.08,106.02,4.7092]
[1744208554032,100.82528097,106.08,106.02,4.7092]
[1744208554432,100.76404964,106.08,106.02,14.1473]
[1744208554621,9.4364,106.05,106.02,4.7092]
[1744208555225,9.4373,106.04,106.02,4.77575888]
[1744208555427,0.06276524,106.05,106.02,4.77575888]
[1744208556029,0.06276524,106.05,106.04,9.4368]
[1744208556838,12.95004241,106.09,106.07,9.4339]
[1744208557142,51.80016966,106.07,106.04,60.8]
[1744208557334,20.37966966,106.07,106.06,9.435]
[1744208557540,7.81176966,106.07,106.06,9.435]
[1744208557933,103.67125434,106.08,106.07,9.4341]
[1744208558132,0.070915,106.08,106.07,9.4341]
[1744208559646,259.37059646,106.1,106.05,399.02352648]
[1744208560637,259.37059646,106.1,106.08,9.4327]
[1744208560838,0.0656782,106.09,106.05,359.05947684]
[1744208561148,9.4301,106.12,106.06,0.07026307]
[1744208561347,9.4301,106.12,106.05,359.0]
[1744208561549,100.78404964,106.16,106.05,359.0]
[1744208562049,100.78404964,106.16,106.06,39.96404964]
[1744208562240,9.4283,106.14,106.11,9.4299]
[1744208562441,0.06920564,106.12,106.11,9.4299]
[1744208562746,9.4301,106.12,106.07,7.7949]
[1744208562953,0.06124187,106.13,106.1,0.06001954]
[1744208563149,0.06723596,106.11,106.1,0.06001954]
[1744208563449,103.41175448,106.19,106.1,39.96404964]
[1744208563748,103.41175448,106.19,106.1,398.96404964]
[1744208563951,9.4247,106.18,106.15,9.4261]
[1744208564549,9.49523355,106.18,106.15,9.49638181]
[1744208564941,0.07053355,106.18,106.17,9.4252]
[1744208565245,0.07053355,106.18,106.15,0.07028181]
[1744208565447,9.49543355,106.18,106.15,9.49648181]
[1744208565746,9.49543355,106.18,106.15,0.07028181]
[1744208566048,0.07053355,106.18,106.15,0.07028181]
[1744208566644,0.07053355,106.18,106.17,9.4252]
[1744208566947,0.07053355,106.18,106.15,0.07028181]
[1744208567152,9.49563355,106.18,106.15,9.49688181]
[1744208567342,0.07053355,106.18,106.15,9.49688181]
[1744208567746,9.4256,106.17,106.15,0.07028181]
[1744208568452,9.49533355,106.18,106.15,9.49718181]
[1744208568653,0.07053355,106.18,106.15,9.49718181]